bitfinex/quotes_BTCUSD_20241128
["timestamp","ask_amount","ask_price","bid_price","bid_amount"]
[1732786935812,0.104926,95305.0,95281.0,0.09352205]
[1732786936059,0.10493,95301.0,95272.0,0.09352205]
[1732786936294,0.1573942,95301.0,95273.0,0.00185755]
[1732786937046,0.1573942,95301.0,95268.0,0.1263]
[1732786937047,0.3073942,95301.0,95268.0,0.1263]
[1732786937256,0.42023941,95301.0,95268.0,0.1263]
[1732786937974,0.43281207,95301.0,95268.0,0.1263]
[1732786938649,0.43681207,95301.0,95268.0,0.1263]
[1732786939100,0.43281207,95301.0,95268.0,0.1263]
[1732786939353,0.44181207,95301.0,95300.0,0.0027242]
[1732786940251,0.45081207,95301.0,95300.0,0.0037242]
[1732786940707,0.45981207,95301.0,95300.0,0.0037242]
[1732786940916,0.45081207,95301.0,95300.0,0.0027242]
[1732786941380,0.45981207,95301.0,95300.0,0.0027242]
[1732786941598,0.44081207,95301.0,95300.0,0.0017242]
[1732786941829,0.45981207,95301.0,95300.0,0.0027242]
[1732786942481,0.45081207,95301.0,95300.0,0.0017242]
[1732786942689,0.44181207,95301.0,95300.0,0.0027242]
[1732786942919,0.45081207,95301.0,95300.0,0.0027242]
[1732786943367,0.44181207,95301.0,95300.0,0.0027242]
[1732786943799,0.45081207,95301.0,95300.0,0.0027242]
[1732786955660,0.45053801,95301.0,95300.0,0.0027242]
[1732786960806,0.45057801,95301.0,95300.0,0.0027242]
[1732786964615,0.4830258,95301.0,95300.0,0.0027242]
[1732786964835,0.45057801,95301.0,95300.0,0.0027242]
[1732786965484,0.48304128,95301.0,95300.0,0.0027242]
[1732786969570,0.42057708,95301.0,95300.0,0.0027242]
[1732786969840,0.16773187,95301.0,95300.0,0.0027242]
[1732786970075,0.1352686,95301.0,95300.0,0.0027242]
[1732786970538,0.16788726,95301.0,95300.0,0.0027242]
[1732786970977,0.15888726,95301.0,95300.0,0.1301242]
[1732786971223,0.16288726,95301.0,95300.0,0.1301242]
[1732786971431,0.1302686,95301.0,95300.0,0.1301242]
[1732786971863,0.1262686,95301.0,95300.0,0.1301242]
[1732786972074,0.1172686,95301.0,95300.0,0.1301242]
[1732786972297,0.1282686,95301.0,95300.0,0.1301242]
[1732786973383,0.1172686,95301.0,95300.0,0.1301242]
[1732786973610,0.1192686,95301.0,95300.0,0.1301242]
[1732786974080,0.1202686,95301.0,95300.0,0.1301242]
[1732786975021,0.10769594,95301.0,95300.0,0.1301242]
[1732786975246,0.00304,95301.0,95300.0,0.1301242]
[1732786975668,0.10797,95301.0,95300.0,0.1301242]
[1732786977049,0.12268456,95301.0,95300.0,0.0471242]
[1732786977304,0.12268456,95301.0,95300.0,0.0017242]
[1732786978042,0.1088341,95301.0,95300.0,0.0017242]
[1732786983495,0.0039041,95301.0,95300.0,0.0490242]
[1732786983752,0.0039041,95301.0,95300.0,0.1246242]
[1732786984280,0.0039041,95301.0,95300.0,0.35540041]
[1732786984520,0.0008641,95304.0,95303.0,0.250828]
[1732786984758,0.0008641,95304.0,95303.0,0.24874521]
[1732786984999,0.1057911,95304.0,95303.0,0.1229]
[1732786985232,0.0008641,95304.0,95303.0,0.1229]
[1732786986149,0.0008641,95304.0,95303.0,0.1239]
[1732786988242,0.0008641,95304.0,95303.0,0.22674521]
[1732786989489,0.0008641,95304.0,95303.0,0.33167321]
[1732786989731,0.0008641,95304.0,95303.0,0.22674521]
[1732786995309,0.0008641,95304.0,95303.0,0.22974521]
[1732786995540,0.0008641,95304.0,95303.0,0.22874521]
[1732786995976,0.0018641,95304.0,95303.0,0.23274521]
[1732786996197,0.0018641,95304.0,95303.0,0.1299]
[1732786996411,0.1067911,95304.0,95303.0,0.1299]
[1732786996634,0.1067911,95304.0,95303.0,0.1269]
[1732786997075,0.1057911,95304.0,95303.0,0.1269]
[1732786997316,0.0008641,95304.0,95303.0,0.1269]
[1732786997530,0.0008641,95304.0,95303.0,0.1229]
[1732786997754,0.0008641,95304.0,95303.0,0.1259]
[1732786998442,0.1067911,95304.0,95303.0,0.1299]
[1732786998912,0.1067911,95304.0,95303.0,0.007]
[1732786999127,0.1848911,95304.0,95303.0,0.007]
[1732787000053,0.197374,95304.0,95303.0,0.004]
[1732787000291,0.093447,95304.0,95300.0,0.0017242]
[1732787000537,0.10493,95301.0,95300.0,0.0017242]
[1732787003103,0.15531059,95301.0,95300.0,0.0017242]
[1732787003537,0.15631059,95301.0,95300.0,0.0017242]
[1732787004225,0.17740905,95301.0,95300.0,0.0017242]
[1732787004690,0.12902846,95301.0,95300.0,0.0017242]
[1732787006017,0.12902846,95301.0,95266.0,0.023]
[1732787006018,0.104958,95276.0,95266.0,0.023]
[1732787006264,0.104956,95278.0,95268.0,0.277967]
[1732787006486,0.104956,95278.0,95270.0,0.023]
[1732787006699,0.104956,95278.0,95271.0,0.10470288]
[1732787007151,0.1523656,95280.0,95272.0,0.104962]
[1732787007384,0.20988,95293.0,95268.0,0.173]
[1732787007385,0.20988,95293.0,95273.0,0.10470286]
[1732787007639,0.0009934,95291.0,95275.0,0.15]
[1732787007851,0.0009934,95291.0,95277.0,0.023]
[1732787008123,0.0009934,95291.0,95288.0,0.023]
[1732787008354,0.0009934,95291.0,95289.0,0.10470249]
[1732787008553,0.1523656,95300.0,95289.0,0.10470249]
[1732787008554,0.209866,95299.0,95289.0,0.10470249]
[1732787008768,0.209867,95298.0,95289.0,0.10470249]
[1732787008986,0.209867,95298.0,95290.0,0.1255]
[1732787009218,0.104939,95293.0,95291.0,0.10284521]
[1732787009644,0.20987,95297.0,95291.0,0.10284521]
[1732787009899,0.1523656,95300.0,95291.0,0.10284521]
[1732787010129,0.209865,95299.0,95291.0,0.10284521]
[1732787010348,0.104935,95297.0,95291.0,0.10284521]
[1732787010567,0.209865,95299.0,95291.0,0.10284521]
[1732787010793,0.104935,95297.0,95291.0,0.10284521]
[1732787011057,0.104936,95296.0,95291.0,0.10284521]
[1732787011538,0.104936,95296.0,95291.0,0.10384521]
[1732787011772,0.001,95293.0,95291.0,0.10784521]
[1732787012015,0.001,95293.0,95291.0,0.10384521]
[1732787012242,0.001,95293.0,95291.0,0.10784521]
[1732787012491,0.10494,95292.0,95291.0,0.10784521]
[1732787012724,0.001,95293.0,95291.0,0.10784521]
[1732787012945,0.001,95293.0,95291.0,0.10684521]
[1732787013395,0.105936,95296.0,95291.0,0.10484521]
[1732787013625,0.001,95293.0,95291.0,0.10884521]
[1732787014045,0.001,95293.0,95291.0,0.11070248]
[1732787014268,0.001,95293.0,95292.0,0.0082984]
[1732787014496,0.001,95293.0,95292.0,0.10284521]
[1732787014737,0.104926,95305.0,95292.0,0.10284521]
[1732787014972,0.0009977,95309.0,95293.0,0.12770233]
[1732787015195,0.001,95296.0,95295.0,0.104936]
[1732787015448,0.104923,95308.0,95295.0,0.23263933]
[1732787015662,0.104923,95308.0,95296.0,0.12770233]
[1732787015877,0.104924,95307.0,95296.0,0.12770233]
[1732787016374,0.0009977,95309.0,95296.0,0.12770233]
[1732787016857,0.209848,95307.0,95296.0,0.12770233]
[1732787017080,0.104927,95305.0,95296.0,0.12770233]
[1732787017564,0.1057911,95304.0,95296.0,0.12770233]
[1732787017779,0.0008641,95304.0,95296.0,0.12770233]
[1732787018000,0.1057911,95304.0,95296.0,0.12770233]
[1732787018237,0.1057911,95304.0,95298.0,0.023]
[1732787018451,0.0008641,95304.0,95299.0,0.10284521]
[1732787019128,0.0008641,95304.0,95303.0,0.023]
[1732787019348,0.0008641,95304.0,95303.0,0.12584521]
[1732787020709,0.0008641,95304.0,95303.0,0.12884521]
[1732787020955,0.0008641,95304.0,95303.0,0.10584521]
[1732787021195,0.1057911,95304.0,95303.0,0.10284521]
[1732787021431,0.1057911,95304.0,95303.0,0.11184521]
[1732787021432,0.1067911,95304.0,95303.0,0.11184521]
[1732787021653,0.0018641,95304.0,95303.0,0.11184521]
[1732787021863,0.0028641,95304.0,95303.0,0.11584521]
[1732787022786,0.0028641,95304.0,95303.0,0.11084521]
[1732787022999,0.1077911,95304.0,95303.0,0.008]
[1732787023479,0.1077911,95304.0,95303.0,0.011]
[1732787023879,0.1077911,95304.0,95303.0,0.008]
[1732787024110,0.1077911,95304.0,95303.0,0.01]
[1732787024560,0.1077911,95304.0,95291.0,0.0496]
[1732787024561,0.0008641,95304.0,95294.0,0.0018572]
[1732787024791,0.0008641,95304.0,95295.0,0.10284521]
[1732787024792,0.104936,95296.0,95295.0,0.10284521]
[1732787025269,0.209856,95303.0,95295.0,0.10284521]
[1732787025509,0.1532297,95304.0,95295.0,0.10284521]
[1732787025510,0.104934,95298.0,95295.0,0.10284521]
[1732787025731,0.209856,95303.0,95295.0,0.10284521]
[1732787025944,0.104935,95298.0,95295.0,0.10284521]
[1732787026155,0.104934,95298.0,95295.0,0.10284521]
[1732787026405,0.104936,95296.0,95295.0,0.10284521]
[1732787026656,0.105936,95296.0,95295.0,0.10684521]
[1732787026865,0.105936,95296.0,95295.0,0.10984521]
[1732787027085,0.001,95296.0,95295.0,0.10984521]
[1732787027338,0.105936,95296.0,95295.0,0.10984521]
[1732787027535,0.105936,95296.0,95295.0,0.10684521]
[1732787027772,0.105936,95296.0,95295.0,0.10884521]
[1732787028040,0.104934,95298.0,95295.0,0.10484521]
[1732787028268,0.105934,95298.0,95295.0,0.10884521]
[1732787028469,0.104935,95297.0,95295.0,0.10484521]
[1732787028912,0.001,95296.0,95295.0,0.10884521]
[1732787029151,0.104935,95297.0,95295.0,0.10284521]
[1732787029368,0.104935,95297.0,95295.0,0.10484521]
[1732787029794,0.104935,95297.0,95295.0,0.10884521]
[1732787030009,0.104935,95297.0,95295.0,0.10684521]
[1732787030243,0.104935,95297.0,95295.0,0.10884521]
[1732787030475,0.104936,95296.0,95295.0,0.006]
[1732787030924,0.104936,95296.0,95295.0,0.004]
[1732787031166,0.10494,95292.0,95291.0,0.15]
[1732787031431,0.10494,95292.0,95291.0,0.25284521]
[1732787032304,0.20195289,95294.0,95291.0,0.29327485]
[1732787032525,0.10594,95292.0,95291.0,0.004]
[1732787032751,0.10594,95292.0,95291.0,0.29327669]
[1732787032988,0.10594,95292.0,95291.0,0.04043148]
[1732787033210,0.10694,95292.0,95291.0,0.04443148]
[1732787033688,0.10694,95292.0,95291.0,0.04643148]
[1732787034129,0.10694,95292.0,95291.0,0.04443148]
[1732787034386,0.18494,95292.0,95291.0,0.04443148]
[1732787034605,0.23264,95292.0,95291.0,0.04643148]
[1732787035058,0.23264,95292.0,95291.0,0.06050336]
[1732787035525,0.23164,95292.0,95291.0,0.04243148]
[1732787035737,0.23064,95292.0,95291.0,0.04243148]
[1732787035952,0.23064,95292.0,95291.0,0.04343148]
[1732787036472,0.23064,95292.0,95291.0,0.04143148]
[1732787036656,0.23064,95292.0,95291.0,0.05550401]
[1732787037095,0.23064,95292.0,95291.0,0.03793361]
[1732787037327,0.23064,95292.0,95291.0,0.0555215]
[1732787037542,0.23064,95292.0,95291.0,0.05552477]
[1732787038390,0.23064,95292.0,95291.0,0.04145165]
[1732787038596,0.18294,95292.0,95291.0,0.04145165]
[1732787038834,0.18294,95292.0,95291.0,0.05552477]
[1732787039932,0.10494,95292.0,95291.0,0.05552477]
[1732787040155,0.10494,95292.0,95291.0,0.04145165]
[1732787043056,0.10494,95292.0,95291.0,0.04034826]
[1732787049610,0.10494,95292.0,95291.0,0.001]
[1732787049823,0.10494,95292.0,95291.0,0.04035015]
[1732787051079,0.10494,95292.0,95291.0,0.03935015]
[1732787051512,0.10594,95292.0,95291.0,0.03935015]
[1732787051719,0.10779761,95292.0,95291.0,0.03935015]
[1732787051922,0.10694,95292.0,95291.0,0.03935015]
[1732787056476,0.316823,95292.0,95291.0,0.00855732]
[1732787056691,0.316823,95292.0,95291.0,0.03936833]
[1732787056901,0.316823,95292.0,95291.0,0.04109293]
[1732787057144,0.3176853,95292.0,95291.0,0.04109293]
[1732787060512,0.3176853,95292.0,95278.0,0.09424875]
[1732787060513,0.104949,95284.0,95278.0,0.09424875]
[1732787060725,0.0018623,95292.0,95282.0,0.023]
[1732787060955,0.0018623,95292.0,95285.0,0.023]
[1732787061166,0.0018623,95292.0,95291.0,0.025]
[1732787061387,0.0018623,95292.0,95291.0,0.12784521]
[1732787061835,0.0018623,95292.0,95291.0,0.12584521]
[1732787062043,0.0008623,95292.0,95291.0,0.10284521]
[1732787062363,0.1058023,95292.0,95291.0,0.10284521]
[1732787062614,0.1058023,95292.0,95281.0,0.023]
[1732787062615,0.0008623,95292.0,95281.0,0.023]
[1732787062855,0.104951,95282.0,95281.0,0.25284521]
[1732787063089,0.30987044,95291.0,95281.0,0.25284521]
[1732787063090,0.09998744,95291.0,95281.0,0.25284521]
[1732787063518,0.104951,95283.0,95281.0,0.25284521]
[1732787063727,0.09998744,95291.0,95281.0,0.25284521]
[1732787064165,0.09998744,95291.0,95281.0,0.25884521]
[1732787064393,0.104951,95282.0,95281.0,0.25884521]
[1732787065056,0.104951,95282.0,95281.0,0.26284521]
[1732787065473,0.104951,95282.0,95281.0,0.25284521]
[1732787065687,0.105951,95282.0,95281.0,0.25984521]
[1732787066371,0.001,95282.0,95281.0,0.27984521]
[1732787066592,0.001,95282.0,95281.0,0.28584521]
[1732787067523,0.104945,95288.0,95281.0,0.28184521]
[1732787067735,0.104945,95288.0,95283.0,0.023]
[1732787067951,0.104945,95288.0,95284.0,0.10284521]
[1732787068426,0.104946,95287.0,95284.0,0.10284521]
[1732787068691,0.209885,95290.0,95285.0,0.01713628]
[1732787068926,0.104947,95286.0,95283.0,0.023]
[1732787069161,0.104947,95286.0,95284.0,0.11998176]
[1732787069411,0.104948,95286.0,95285.0,0.01713655]
[1732787069650,0.104948,95286.0,95285.0,0.11998176]
[1732787070246,0.001,95288.0,95284.0,0.004]
[1732787070247,0.104948,95285.0,95284.0,0.004]
[1732787070469,0.104948,95285.0,95284.0,0.02113676]
[1732787070683,0.104948,95285.0,95284.0,0.03484489]
[1732787071102,0.104948,95285.0,95284.0,0.03084489]
[1732787072158,0.105948,95285.0,95284.0,0.03884489]
[1732787072578,0.105948,95285.0,95284.0,0.04741119]
[1732787073442,0.105948,95285.0,95284.0,0.04740891]
[1732787077071,0.105948,95285.0,95284.0,0.03884064]
[1732787077330,0.105948,95285.0,95284.0,0.04740619]
[1732787079847,0.105948,95285.0,95284.0,0.0611146]
[1732787080295,0.105948,95285.0,95284.0,0.03854061]
[1732787080526,0.105948,95285.0,95284.0,0.04363128]
[1732787080761,0.105948,95285.0,95284.0,0.03005506]
[1732787080977,0.104948,95285.0,95284.0,0.02605506]
[1732787081206,0.104948,95285.0,95284.0,0.02705506]
[1732787081434,0.104948,95285.0,95284.0,0.02305506]
[1732787081686,0.104948,95285.0,95284.0,0.02205506]
[1732787081903,0.104948,95285.0,95284.0,0.02305506]
[1732787081904,0.12600888,95285.0,95284.0,0.02305506]
[1732787082115,0.12600888,95285.0,95284.0,0.001]
[1732787084096,0.12600888,95285.0,95284.0,0.0084817]
[1732787084545,0.12700888,95285.0,95284.0,0.0084817]
[1732787084781,0.12700888,95285.0,95284.0,0.02205377]
[1732787085489,0.104951,95282.0,95281.0,0.0017246]
[1732787086151,0.104951,95282.0,95281.0,0.02377747]
[1732787087026,0.104951,95282.0,95281.0,0.03735182]
[1732787087240,0.104951,95282.0,95281.0,0.02377747]
[1732787087464,0.104951,95282.0,95281.0,0.02477747]
[1732787088179,0.104951,95282.0,95281.0,0.51476317]
[1732787088397,0.104951,95282.0,95281.0,0.37318036]
[1732787089072,0.104951,95282.0,95281.0,0.51475443]
[1732787089285,0.104951,95282.0,95281.0,0.51575443]
[1732787089498,0.104951,95282.0,95281.0,0.37417905]
[1732787089729,0.104951,95282.0,95281.0,0.51575382]
[1732787090166,0.104951,95282.0,95281.0,0.37317905]
[1732787090614,0.104951,95282.0,95281.0,0.37617905]
[1732787090852,0.104951,95282.0,95281.0,0.16935169]
[1732787091302,0.104951,95282.0,95281.0,0.02777616]
[1732787091732,0.104951,95282.0,95281.0,0.2721969]
[1732787091948,0.104951,95282.0,95281.0,0.13062137]
[1732787092458,0.0008625,95286.0,95281.0,0.13062137]
[1732787092459,0.0008625,95286.0,95282.0,0.023]
[1732787092691,0.0008625,95286.0,95285.0,0.21175871]
[1732787092940,0.0008625,95286.0,95285.0,0.38570248]
[1732787093169,0.0008625,95286.0,95285.0,0.73225981]
[1732787094064,0.0008625,95286.0,95285.0,0.73226692]
[1732787094320,0.0008625,95286.0,95285.0,0.50131853]
[1732787094538,0.0018625,95286.0,95285.0,0.50131853]
[1732787094754,0.0028625,95286.0,95285.0,0.50631853]
[1732787094978,0.0018625,95286.0,95285.0,0.50131853]
[1732787095464,0.0028625,95286.0,95285.0,0.74221556]
[1732787095949,0.0028625,95286.0,95285.0,0.7421172]
[1732787096171,0.0028625,95286.0,95285.0,0.63322034]
[1732787096398,0.0028625,95286.0,95285.0,0.63622034]
[1732787096644,0.1058095,95286.0,95285.0,0.62622034]
[1732787096908,0.1068095,95286.0,95285.0,0.55432034]
[1732787097404,0.1068095,95286.0,95285.0,0.38036734]
[1732787099266,0.1068095,95286.0,95285.0,0.17357859]
[1732787099491,0.1068095,95286.0,95285.0,0.03205088]
[1732787099704,0.1068095,95286.0,95285.0,0.56904508]
[1732787100404,0.1068095,95286.0,95285.0,0.38034146]
[1732787100669,0.1068095,95286.0,95285.0,0.35829058]
[1732787100919,0.1068095,95286.0,95285.0,0.56904505]
[1732787101139,0.1068095,95286.0,95285.0,0.38034143]
[1732787102325,0.1068095,95286.0,95285.0,0.22075447]
[1732787102543,0.1068095,95286.0,95285.0,0.56904505]
[1732787102785,0.0018625,95286.0,95285.0,0.67189026]
[1732787103253,0.0018625,95286.0,95285.0,0.69489026]
[1732787103507,0.0018625,95286.0,95285.0,0.74206616]
[1732787104259,0.0018625,95286.0,95285.0,0.75902779]
[1732787105411,0.0018625,95286.0,95285.0,0.52314827]
[1732787107259,0.0018625,95286.0,95285.0,0.41073721]
[1732787107472,0.0018625,95286.0,95285.0,0.75902779]
[1732787108138,0.0018625,95286.0,95285.0,0.86397579]
[1732787108826,0.0018625,95286.0,95285.0,1.1411531]
[1732787108830,0.0008623,95292.0,95285.0,0.80037523]
[1732787109059,0.0008623,95292.0,95291.0,0.173541]
[1732787109297,0.0008623,95292.0,95291.0,0.66547332]
[1732787109528,0.0008623,95292.0,95291.0,0.66361623]
[1732787111550,0.0018623,95292.0,95291.0,0.67261623]
[1732787111777,0.0018623,95292.0,95291.0,0.67661623]
[1732787112955,0.0007249,95296.0,95291.0,0.57167523]
[1732787113199,0.0007249,95296.0,95295.0,0.023]
[1732787113425,0.0007249,95296.0,95295.0,0.49258766]
[1732787113711,0.0007249,95296.0,95295.0,0.70128114]
[1732787114189,0.0007249,95296.0,95295.0,0.51278143]
[1732787114430,0.0007249,95296.0,95295.0,0.65538275]
[1732787114653,0.0017249,95296.0,95295.0,0.76771843]
[1732787114875,0.0017249,95296.0,95295.0,0.66278143]
[1732787115084,0.0027249,95296.0,95295.0,0.66978143]
[1732787115585,0.0017249,95296.0,95295.0,0.66278143]
[1732787116059,0.0027249,95296.0,95295.0,0.67278143]
[1732787116548,0.0027249,95296.0,95295.0,0.66978143]
[1732787116990,0.0027249,95296.0,95295.0,0.63924953]
[1732787117205,0.0027249,95296.0,95295.0,0.66973099]
[1732787117876,0.0027249,95296.0,95295.0,0.67173099]
[1732787117877,0.0017249,95296.0,95295.0,0.67173099]
[1732787118124,0.0017249,95296.0,95295.0,0.67673099]
[1732787118568,0.0027249,95296.0,95295.0,0.91610989]
[1732787118824,0.0007249,95296.0,95295.0,0.89810989]
[1732787119060,0.0007249,95296.0,95295.0,0.90310989]
[1732787120463,0.0007249,95296.0,95295.0,0.66773099]
[1732787121375,0.0007249,95296.0,95295.0,0.90310989]
[1732787121603,0.1056609,95296.0,95295.0,0.65891988]
[1732787121868,0.27274359,95296.0,95295.0,0.04396204]
[1732787122095,0.27274359,95296.0,95281.0,0.2371035]
[1732787122096,0.1273,95285.0,95281.0,0.0017246]
[1732787122321,0.184551,95282.0,95281.0,0.01527245]
[1732787122765,0.232951,95282.0,95281.0,0.0017246]
[1732787122992,0.31455976,95282.0,95281.0,0.0017246]
[1732787123693,0.232951,95282.0,95281.0,0.0017246]
[1732787124079,0.184551,95282.0,95281.0,0.0017246]
[1732787124712,0.188551,95282.0,95281.0,0.0017246]
[1732787125105,0.192551,95282.0,95281.0,0.0017246]
[1732787125316,0.188551,95282.0,95281.0,0.0017246]
[1732787125533,0.185551,95282.0,95281.0,0.0017246]
[1732787126144,0.184551,95282.0,95281.0,0.0037246]
[1732787126391,0.185551,95282.0,95281.0,0.0037246]
[1732787127536,0.105951,95282.0,95281.0,0.10656981]
[1732787127992,0.104951,95282.0,95281.0,0.10456981]
[1732787128421,0.104951,95282.0,95281.0,0.10756981]
[1732787128635,0.104951,95282.0,95281.0,0.10456981]
[1732787129117,0.104951,95282.0,95281.0,0.10956981]
[1732787129349,0.104951,95282.0,95281.0,0.11056981]
[1732787130484,0.14566795,95282.0,95281.0,0.0077246]
[1732787131159,0.14566795,95282.0,95281.0,0.0067246]
[1732787131384,0.22286795,95282.0,95281.0,0.0017246]
[1732787131653,0.22986795,95282.0,95281.0,0.0017246]
[1732787131916,0.236251,95282.0,95281.0,0.0017246]
[1732787132159,0.233251,95282.0,95281.0,0.0017246]
[1732787132361,0.234251,95282.0,95281.0,0.0027246]
[1732787132806,0.3421751,95282.0,95281.0,0.0027246]
[1732787133936,0.32073025,95282.0,95281.0,0.0027246]
[1732787134160,0.234251,95282.0,95281.0,0.01117191]
[1732787134380,0.187151,95282.0,95281.0,0.01117191]
[1732787134596,0.109951,95282.0,95281.0,0.01117191]
[1732787137755,0.18680861,95282.0,95281.0,0.01117191]
[1732787137974,0.26854362,95282.0,95281.0,0.01117191]
[1732787138200,0.26668601,95282.0,95281.0,0.01117191]
[1732787138387,0.26668601,95282.0,95281.0,0.0027246]
[1732787142064,0.24580601,95282.0,95281.0,0.0027246]
[1732787143206,0.10497,95265.0,95264.0,0.01165126]
[1732787143446,0.209937,95267.0,95263.0,0.0017252]
[1732787143447,0.104971,95264.0,95263.0,0.0017252]
[1732787143662,0.104971,95264.0,95263.0,0.11293508]
[1732787144804,0.104971,95264.0,95263.0,0.01008987]
[1732787145506,0.104971,95264.0,95263.0,0.01408987]
[1732787145999,0.105971,95264.0,95263.0,0.01408987]
[1732787146875,0.104971,95264.0,95263.0,0.01408987]
[1732787147113,0.104971,95264.0,95263.0,0.01008987]
[1732787147364,0.104971,95264.0,95263.0,0.01208987]
[1732787147611,0.105971,95264.0,95263.0,0.01208987]
[1732787148061,0.104971,95264.0,95263.0,0.01208987]
[1732787150350,0.104971,95264.0,95263.0,0.01993881]
[1732787151508,0.104971,95264.0,95263.0,0.01793881]
[1732787151737,0.104971,95264.0,95263.0,0.02093881]
[1732787152459,0.104971,95264.0,95263.0,0.01793881]
[1732787152686,0.104971,95264.0,95263.0,0.02293881]
[1732787153371,0.104971,95264.0,95263.0,0.03640569]
[1732787154072,0.36233498,95273.0,95263.0,0.1622509]
[1732787154309,0.209909,95279.0,95264.0,0.15738345]
[1732787154557,0.0009854,95283.0,95270.0,0.023]
[1732787154815,0.1059354,95283.0,95272.0,0.173]
[1732787155034,0.0009854,95283.0,95274.0,0.173]
[1732787155253,0.104952,95281.0,95276.0,0.173]
[1732787155475,0.0008625,95286.0,95278.0,0.023]
[1732787155715,0.104953,95281.0,95280.0,0.023]
[1732787155937,0.209896,95285.0,95280.0,0.14712947]
[1732787156166,0.10495,95283.0,95282.0,0.023]
[1732787156376,0.10495,95283.0,95282.0,0.1555257]
[1732787156603,0.10495,95283.0,95282.0,0.15553572]
[1732787158436,0.0008625,95286.0,95282.0,0.16153572]
[1732787158688,0.104949,95285.0,95284.0,0.023]
[1732787158926,0.0008625,95286.0,95284.0,0.15553572]
[1732787158927,0.1058095,95286.0,95284.0,0.15553572]
[1732787159143,0.1058095,95286.0,95285.0,0.15553572]
[1732787159388,0.0008625,95286.0,95285.0,0.15553572]
[1732787159624,0.1058095,95286.0,95285.0,0.15553572]
[1732787159871,0.0008625,95286.0,95285.0,0.28379317]
[1732787160097,0.0008625,95286.0,95285.0,0.28193572]
[1732787160350,0.0008625,95286.0,95285.0,0.43193572]
[1732787160618,0.0008625,95286.0,95285.0,0.77898986]
[1732787161774,0.0018625,95286.0,95285.0,0.78798986]
[1732787161991,0.0018625,95286.0,95285.0,0.97600954]
[1732787162214,0.0018625,95286.0,95285.0,0.78797962]
[1732787162724,0.0018625,95286.0,95285.0,0.40856404]
[1732787162961,0.0028625,95286.0,95285.0,0.32052548]
[1732787163201,0.1078095,95286.0,95285.0,0.32052548]
[1732787164415,0.1078095,95286.0,95285.0,0.29752548]
[1732787164675,0.1078095,95286.0,95285.0,0.14752548]
[1732787164927,0.1078095,95286.0,95285.0,0.04468027]
[1732787165402,0.1078095,95286.0,95285.0,0.03568027]
[1732787165657,0.1058095,95286.0,95285.0,0.02967587]
[1732787165891,0.1058095,95286.0,95285.0,0.03067587]
[1732787167140,0.1058095,95286.0,95285.0,0.02967587]
[1732787167387,0.1058095,95286.0,95285.0,0.03167587]
[1732787168818,0.0008625,95286.0,95285.0,0.11268953]
[1732787169073,0.0008625,95286.0,95285.0,0.15745817]
[1732787169331,0.0008625,95286.0,95285.0,0.50696543]
[1732787169595,0.0008625,95286.0,95285.0,0.70340809]
[1732787169852,0.0008625,95286.0,95285.0,0.80835609]
[1732787170124,0.0008625,95286.0,95285.0,0.70340809]
[1732787170580,0.0008625,95286.0,95285.0,1.18987277]
[1732787170804,0.0008625,95286.0,95285.0,0.70330592]
[1732787171051,0.0008625,95286.0,95285.0,0.72463357]
[1732787172204,0.0008625,95286.0,95285.0,0.72962645]
[1732787172904,0.104929,95303.0,95286.0,0.15]
[1732787173154,0.104931,95301.0,95296.0,0.09408573]
[1732787173392,0.000996,95305.0,95297.0,0.14947101]
[1732787173616,0.209854,95304.0,95299.0,0.023]
[1732787173855,0.104931,95301.0,95300.0,0.14761385]
[1732787174974,0.0009885,95317.0,95301.0,0.023]
[1732787175215,0.0009885,95317.0,95301.0,0.02485707]
[1732787175216,0.104929,95302.0,95301.0,0.02485707]
[1732787175412,0.104929,95302.0,95301.0,0.10284521]
[1732787175671,0.104929,95302.0,95301.0,0.14758571]
[1732787177100,0.104929,95302.0,95301.0,0.15158571]
[1732787178062,0.104929,95302.0,95301.0,0.15258571]
[1732787178954,0.104929,95302.0,95301.0,0.15259268]
[1732787181044,0.209855,95304.0,95301.0,0.15259268]
[1732787181285,0.0009885,95317.0,95302.0,0.14759268]
[1732787181529,0.104922,95309.0,95303.0,0.02174747]
[1732787181759,0.104922,95309.0,95304.0,0.1112091]
[1732787181980,0.104922,95309.0,95305.0,0.00836389]
[1732787182205,0.104922,95309.0,95306.0,0.1112091]
[1732787182650,0.285639,95312.0,95307.0,0.00836389]
[1732787182869,0.104921,95310.0,95308.0,0.00836389]
[1732787183121,0.104921,95310.0,95309.0,0.00836389]
[1732787183359,0.10492,95311.0,95309.0,0.00836389]
[1732787183582,0.10492,95311.0,95307.0,0.10284521]
[1732787183583,0.104919,95311.0,95310.0,0.02176363]
[1732787184751,0.105919,95311.0,95310.0,0.00836389]
[1732787184961,0.104919,95311.0,95310.0,0.00836389]
[1732787185479,0.105919,95311.0,95310.0,0.00836389]
[1732787185718,0.106919,95311.0,95310.0,0.00836389]
[1732787186182,0.104919,95311.0,95310.0,0.00836389]
[1732787186643,0.104919,95311.0,95310.0,0.02176847]
[1732787187127,0.104919,95311.0,95310.0,0.02376847]
[1732787187580,0.1057809,95311.0,95310.0,0.02376847]
[1732787189900,0.0008619,95311.0,95310.0,0.02376847]
[1732787190119,0.1057809,95311.0,95310.0,0.02376847]
[1732787190341,0.0008619,95311.0,95310.0,0.02376847]
[1732787190869,0.0008619,95311.0,95310.0,0.12661368]
[1732787191102,0.0008619,95311.0,95310.0,0.14961368]
[1732787191346,0.0008619,95311.0,95310.0,0.15147052]
[1732787191802,0.0008619,95311.0,95310.0,0.14961368]
[1732787192019,0.0008619,95311.0,95310.0,0.14761368]
[1732787192704,0.0008619,95311.0,95310.0,0.14961368]
[1732787194064,0.0008619,95311.0,95310.0,0.15761368]
[1732787195061,0.0008619,95311.0,95310.0,0.16161368]
[1732787196697,0.1870809,95311.0,95310.0,0.03576847]
[1732787197744,0.1870809,95311.0,95310.0,0.02976847]
[1732787197997,0.1870809,95311.0,95310.0,0.02176847]
[1732787198221,0.0018619,95311.0,95310.0,0.12461368]
[1732787198458,0.0008619,95311.0,95310.0,0.12461368]
[1732787198687,0.0018619,95311.0,95310.0,0.12461368]
[1732787198920,0.0018619,95311.0,95310.0,0.12666267]
[1732787199371,0.0008619,95311.0,95310.0,0.12466267]
[1732787199587,0.1057809,95311.0,95310.0,0.12566267]
[1732787200728,0.1057809,95311.0,95310.0,0.02281746]
[1732787200947,0.1057809,95311.0,95310.0,0.02581746]
[1732787201203,0.1057809,95311.0,95310.0,0.02481746]
[1732787201427,0.1057809,95311.0,95310.0,0.02581746]